fUSD/lending_fUSD_20260410
["ID","MTS","AMOUNT","RATE_DAILY","PERIOD"]
[420226958,1775813356001,-1063.97573876,0.00013312,2]
[420226959,1775813356030,-1063.97573876,0.00013312,2]
[420226960,1775813356078,-1063.97573876,0.00013312,2]
[420226961,1775813356102,-195.52697735,0.00013312,2]
[420226962,1775813356139,-1025.40343279,0.00013312,2]
[420226963,1775813356227,-19.57273921,0.00013312,2]
[420226964,1775813356237,-247.69094057,0.00013312,2]
[420226965,1775813356280,-797.28523143,0.00013312,2]
[420226966,1775813356314,-1044.976172,0.00013312,2]
[420226967,1775813356353,-1044.976172,0.00013312,2]
[420226968,1775813356388,-1044.976172,0.00013312,2]
[420226969,1775813356434,-1044.976172,0.00013312,2]
[420226970,1775813356465,-1044.976172,0.00013312,2]
[420226971,1775813356504,-1044.976172,0.00013312,2]
[420226972,1775813356534,-1044.976172,0.00013312,2]
[420226973,1775813356562,-1044.976172,0.00013312,2]
[420226974,1775813356592,-842.90539257,0.00013312,2]
[420226975,1775813356701,-202.07077943,0.00013312,2]
[420226976,1775813356759,-1044.976172,0.00013312,2]
[420226977,1775813356796,-1044.976172,0.00013312,2]
[420226978,1775813356845,-1044.976172,0.00013312,2]
[420226979,1775813356890,-1044.976172,0.00013312,2]
[420226980,1775813356937,-1044.976172,0.00013312,2]
[420226981,1775813356985,-1044.976172,0.00013312,2]
[420226982,1775813357047,-1044.976172,0.00013312,2]
[420226983,1775813357093,-1044.976172,0.00013312,2]
[420226984,1775813357131,-1044.976172,0.00013312,2]
[420226985,1775813357171,-393.14367257,0.00013312,2]
[420226986,1775813359599,-651.83249943,0.00013312,2]
[420226987,1775813359641,-1044.976172,0.00013312,2]
[420226988,1775813359682,-1044.976172,0.00013312,2]
[420226989,1775813359709,-500.0,0.00013312,2]
[420226990,1775813359738,-500.0,0.00013312,2]
[420226991,1775813359765,-410.48275479,0.00013312,2]
[420226992,1775813359787,-204.39835188,0.00013312,2]
[420226993,1775813359824,-1025.97660524,0.00013312,2]
[420226994,1775813359860,-1025.97660524,0.00013312,2]
[420226995,1775813359901,-1025.97660524,0.00013312,2]
[420226996,1775813359948,-1025.97660524,0.00013312,2]
[420226997,1775813360001,-1025.97660524,0.00013312,2]
[420226998,1775813360053,-513.4510237,0.00013312,2]
[420226999,1775813360194,-512.52558154,0.00013312,2]
[420227000,1775813360255,-1025.97660524,0.00013312,2]
[420227001,1775813360295,-1025.97660524,0.00013312,2]
[420227002,1775813360341,-1025.97660524,0.00013312,2]
[420227003,1775813360384,-1025.97660524,0.00013312,2]
[420227004,1775813360424,-1025.97660521,0.00013312,2]
[420227005,1775813360476,-173.97499123,0.00013312,2]
[420227006,1775813360513,-4183.61640106,0.00013313,2]
[420227007,1775813360601,-10000.0,0.00013313,2]
[420227008,1775813360690,-10000.0,0.00013313,2]
[420227009,1775813360758,-10000.0,0.00013313,2]
[420227010,1775813360932,-10000.0,0.00013313,2]
[420227011,1775813360972,-5000.01,0.00013313,2]
[420227012,1775813361011,-10000.0,0.00013313,2]
[420227013,1775813361178,-5000.01,0.00013313,2]
[420227014,1775813361279,-10000.0,0.00013313,2]
[420227015,1775813362636,-10000.0,0.00013313,2]
[420227016,1775813364142,-10000.0,0.00013313,2]
[420227017,1775813366161,-10000.0,0.00013313,2]
[420227018,1775813367470,-10000.0,0.00013313,2]
[420227019,1775813379134,-456.0,0.00013313,2]
[420227023,1775813432273,-11018.99933172,0.00013212,2]
[420227036,1775813432763,-3229.88370083,0.00013212,2]
[420227038,1775813432800,-8557.72065437,0.00013212,2]
[420227039,1775813432812,-8109.60989327,0.00013212,2]
[420227040,1775813432824,-35302.39811981,0.00013212,2]
[420227041,1775813432833,-150.0,0.00013312,2]
[420227042,1775813432844,-162.0,0.00013313,3]
[420227043,1775813432853,-489.0,0.00013313,3]
[420227044,1775813432863,-156.0,0.00013313,3]
[420227045,1775813432874,-1051.50405644,0.00013313,2]
[420227046,1775813432885,-1254.41808677,0.00013313,2]
[420227052,1775813438521,-287.68959405,0.00013313,2]
[420227053,1775813438549,-537.90185911,0.00013313,2]
[420227054,1775813438687,-27645.37470333,0.00013313,2]
[420227055,1775813438767,-669.57770617,0.00013313,2]
[420227056,1775813439022,-524.0,0.00013313,2]
[420227060,1775813440801,-635.19657638,0.00013313,2]
[420227061,1775813440886,-48982.87737141,0.00013313,2]
[420227062,1775813440898,-415.00474477,0.00013313,2]
[420227063,1775813440909,-3549.4941997,0.00013313,2]
[420227064,1775813440923,-3319.34564539,0.00013313,2]
[420227065,1775813441153,-451499.9750906,0.00013313,2]
[420227066,1775813441200,-482.44244542,0.00013313,2]
[420227067,1775813441260,-7464.80342362,0.00013313,2]
[420227074,1775813443382,-712.68012073,0.00013313,2]
[420227075,1775813443398,-8112.666113,0.00013313,2]
[420227079,1775813446534,-2524.83280632,0.00013313,2]
[420227080,1775813446555,-47235.6561694,0.00013313,2]
[420227082,1775813446753,-522.86765501,0.00013313,2]
[420227084,1775813447249,-18583.80783255,0.00013313,2]
[420227085,1775813447261,-2535.73139877,0.00013313,2]
[420227086,1775813447270,-766.81913735,0.00013343,2]
[420227087,1775813447290,-901.76753375,0.00013243,2]
[420227088,1775813447299,-541.91166042,0.00013343,2]
[420227089,1775813447308,-500.0,0.00013373,2]
[420227090,1775813447318,-1056.23,0.00013443,2]
[420227091,1775813447328,-158.88478366,0.00013565,2]
[420227092,1775813447338,-150.0,0.000136,2]
[420227093,1775813447348,-2576.56427001,0.00013607,2]
[420227094,1775813447360,-857.45517208,0.00013607,2]
[420227095,1775813447397,-3939.183122,0.00013607,2]
[420227096,1775813447410,-1699.28733319,0.00013607,2]
[420227097,1775813447419,-150.0,0.00013699,2]
[420227098,1775813447429,-26.52297671,0.00013699,2]
[420227107,1775813854158,-5000.01,0.000107,5]
[420227114,1775814319272,-533.0,0.000104,5]
[420227115,1775814319320,-250.0,0.0001092,2]
[420227116,1775814319359,-600.0,0.0001144,2]
[420227117,1775814319387,-250.0,0.0001144,2]
[420227118,1775814319420,-164.2718,0.0001155,2]
[420227119,1775814319453,-271.632087,0.00011855,2]
[420227120,1775814319617,-862.202226,0.00012266,2]
[420227121,1775814322133,-715.55720833,0.00012266,2]
[420227122,1775814322176,-485.11,0.00012922,2]
[420227123,1775814322208,-250.0,0.00013,2]
[420227124,1775814322242,-250.0,0.00013,2]
[420227125,1775814322278,-728.06558334,0.00013049,2]
[420227126,1775814322404,-142.54441666,0.00013049,2]
[420227127,1775814325184,-200.0,0.00013069,2]
[420227128,1775814325225,-510.0,0.000131,2]
[420227129,1775814325265,-888.66025749,0.00013118,2]
[420227130,1775814325313,-300.0,0.00013211,2]
[420227131,1775814325370,-150.0,0.00013211,2]
[420227132,1775814325580,-902.68948502,0.00013212,2]
[420227134,1775814631582,-1378.17418521,0.00013112,2]
[420227135,1775814631604,-221.82581479,0.00013112,2]
[420227136,1775814631618,-1782.77332435,0.00013112,2]
[420227137,1775814631639,-16121.05247707,0.00013112,2]
[420227141,1775814633182,-1838.21491236,0.00013112,2]
[420227142,1775814633199,-7371.31668622,0.00013112,2]
[420227143,1775814633223,-799.79423175,0.00013208,2]
[420227144,1775814633235,-150.0,0.00013211,2]
[420227145,1775814633256,-1570.5832512,0.00013285,2]
[420227146,1775814633277,-2016.4056186,0.00013308,2]
[420227147,1775814633293,-918.0497271,0.00013308,2]
[420227148,1775814633309,-649.17989117,0.00013401,2]
[420227149,1775814633326,-155.82,0.00013424,2]
[420227150,1775814633340,-409.0,0.00013507,2]
[420227151,1775814633367,-799.79423169,0.00013507,2]
[420227152,1775814633379,-150.0,0.000136,2]
[420227153,1775814633399,-4632.83472489,0.00013691,2]
[420227154,1775814633439,-474.0,0.00013699,2]
[420227155,1775814633484,-747.57,0.00013699,2]
[420227156,1775814633532,-162.0,0.00013699,3]
[420227157,1775814633584,-464.0,0.00013699,3]
[420227158,1775814633613,-156.0,0.00013699,3]
[420227159,1775814633630,-799.79423169,0.00013806,2]
[420227160,1775814633649,-1056.23,0.00013817,2]
[420227161,1775814633667,-2000.0,0.00013911,2]
[420227162,1775814633677,-30100.0,0.00014,2]
[420227163,1775814633702,-1000.0,0.00014,2]
[420227164,1775814633718,-922.12,0.00014105,2]
[420227165,1775814633735,-799.79423169,0.00014105,2]
[420227166,1775814633755,-2504.27071841,0.00014109,2]
[420227167,1775814633765,-1056.23,0.0001419,2]
[420227168,1775814633781,-1600.0,0.00014222,2]
[420227169,1775814633799,-3240.0,0.00014225,2]
[420227170,1775814633810,-150.0,0.00014245,2]
[420227171,1775814633825,-66.4163083,0.00014263,2]
[420227172,1775814633846,-89.4036917,0.00014263,2]
[420227173,1775814633857,-178.0,0.00014321,2]
[420227174,1775814633868,-603.29052677,0.00014376,2]
[420227175,1775814633878,-747.57,0.00014384,2]
[420227176,1775814633899,-170.24,0.00014384,2]
[420227177,1775814633908,-799.79423169,0.00014404,2]
[420227178,1775814633920,-1145.13944804,0.00014473,2]
[420227179,1775814633936,-166.66,0.00014488,2]
[420227180,1775814633948,-2500.0,0.00014534,2]
[420227181,1775814633958,-2500.0,0.00014534,2]
[420227182,1775814633976,-2500.0,0.00014534,2]
[420227183,1775814633990,-2500.0,0.00014534,2]
[420227184,1775814633999,-2053.64950293,0.00014534,2]
[420227185,1775814634013,-300.0,0.00014534,2]
[420227186,1775814634027,-300.0,0.00014534,2]
[420227187,1775814634039,-300.0,0.00014534,2]
[420227188,1775814634049,-300.0,0.00014534,2]
[420227189,1775814634071,-386.03664864,0.00014534,2]
[420227190,1775814634081,-500.0,0.00014534,2]
[420227191,1775814634091,-500.0,0.00014534,2]
[420227192,1775814634106,-34.980166,0.00014544,2]
[420227193,1775814634407,-500.0,0.00014573,2]
[420227194,1775814634423,-2445.98707011,0.00014574,2]
[420227195,1775814634433,-388.09,0.00014585,2]
[420227196,1775814634442,-1235.18214925,0.00014604,2]
[420227197,1775814634452,-578.20924308,0.00014604,2]
[420227198,1775814634465,-3949.69649733,0.00014604,2]
[420227200,1775814637793,-7.942159,0.00013112,2]
[420227201,1775814637809,-335.057841,0.00013112,2]
[420227202,1775814637819,-204.87766902,0.00014604,2]
[420227203,1775814637852,-825.26934686,0.00014604,2]
[420227204,1775814637867,-2985.56701947,0.00014604,2]
[420227205,1775814637878,-500.0,0.00014604,2]
[420227206,1775814637897,-601.3376128,0.00014604,2]
[420227207,1775814637910,-200.0,0.00014604,2]
[420227208,1775814637922,-220.93104248,0.00014604,2]
[420227209,1775814637940,-743.50770149,0.00014604,2]
[420227210,1775814637957,-151.0,0.00014604,2]
[420227211,1775814637967,-174.61919141,0.00014604,2]
[420227212,1775814637992,-599.60298507,0.00014604,2]
[420227213,1775814638006,-411.57624402,0.00014604,2]
[420227214,1775814638034,-2318.29,0.00014656,2]
[420227215,1775814638052,-4933.07410202,0.00014659,2]
[420227216,1775814638078,-500.0,0.00014659,2]
[420227217,1775814638092,-151.0,0.00014659,2]
[420227218,1775814638104,-200.0,0.00014666,2]
[420227219,1775814638120,-1145.13944799,0.00014677,2]
[420227220,1775814638133,-799.79423169,0.00014704,2]
[420227221,1775814638147,-500.0,0.00014714,2]
[420227222,1775814638162,-151.0,0.00014714,2]
[420227223,1775814638181,-500.0,0.00014769,2]
[420227224,1775814638191,-151.0,0.00014769,2]
[420227225,1775814638206,-166.66,0.00014793,2]
[420227226,1775814638225,-500.0,0.00014824,2]
[420227227,1775814638235,-225.07940314,0.00014831,2]
[420227228,1775814638247,-500.0,0.00014879,2]
[420227229,1775814638265,-1145.13944799,0.00014881,2]
[420227230,1775814638279,-174.6007,0.000149,2]
[420227231,1775814638291,-500.0,0.00014934,2]
[420227232,1775814638313,-500.0,0.00014989,2]
[420227233,1775814638327,-43964.32079208,0.0001499,2]
[420227234,1775814638336,-300.0,0.00015,2]
[420227235,1775814638349,-1446.0,0.00015,2]
[420227236,1775814638371,-799.79423169,0.00015003,2]
[420227238,1775814638382,-500.0,0.00015044,2]
[420227240,1775814638399,-225.0,0.00015068,2]
[420227243,1775814638411,-747.57,0.00015068,2]
[420227245,1775814638424,-494.32809361,0.00015068,2]
[420227247,1775814638442,-1145.13944799,0.00015085,2]
[420227250,1775814638456,-166.66,0.00015098,2]
[420227252,1775814638469,-500.0,0.00015099,2]
[420227254,1775814638484,-155.82,0.00015102,2]
[420227256,1775814638499,-1000.0,0.00015121,2]
[420227258,1775814638510,-301.45296488,0.00015152,2]
[420227260,1775814638522,-500.0,0.00015154,2]
[420227262,1775814638539,-168.0,0.0001516,2]
[420227264,1775814638553,-168.0,0.00015182,2]
[420227266,1775814638565,-168.0,0.00015193,2]
[420227268,1775814638579,-500.0,0.00015209,2]
[420227270,1775814638592,-870.61,0.00015211,2]
[420227272,1775814638603,-840.0,0.0001526,2]
[420227274,1775814638614,-500.0,0.00015264,2]
[420227276,1775814638631,-160.0,0.00015268,7]
[420227278,1775814638641,-408.628018,0.00015268,7]
[420227280,1775814638653,-657.256036,0.00015268,7]
[420227282,1775814638663,-160.0,0.00015268,7]
[420227285,1775814638677,-608.937151,0.00015268,7]
[420227287,1775814638687,-1057.874303,0.00015268,7]
[420227289,1775814638699,-160.0,0.00015268,2]
[420227291,1775814638711,-590.991249,0.00015268,2]
[420227293,1775814638721,-1021.982499,0.00015268,2]
[420227294,1775814638731,-1145.13944799,0.00015288,2]
[420227297,1775814638742,-799.79423169,0.00015302,2]
[420227299,1775814638752,-500.0,0.00015319,2]
[420227301,1775814638764,-275.25610977,0.0001532,2]
[420227303,1775814638774,-1671.0,0.00015352,2]
[420227305,1775814638786,-500.0,0.00015352,2]
[420227307,1775814638796,-500.0,0.00015352,2]
[420227309,1775814638809,-350.0,0.00015352,2]
[420227311,1775814638818,-150.0,0.00015352,2]
[420227313,1775814638831,-162.0,0.0001536,2]
[420227315,1775814638841,-166.66,0.00015403,2]
[420227317,1775814638851,-510.0,0.00015407,4]
[420227319,1775814638861,-464.0,0.00015426,3]
[420227321,1775814638871,-1145.13944799,0.00015492,2]
[420227323,1775814638881,-3642.35,0.00015507,2]
[420227325,1775814638891,-1344.558,0.00015507,2]
[420227327,1775814638900,-500.0,0.00015518,2]
[420227329,1775814638910,-500.0,0.00015518,2]
[420227331,1775814638921,-500.0,0.00015518,2]
[420227333,1775814638932,-500.0,0.00015518,2]
[420227336,1775814638941,-500.0,0.00015518,2]
[420227337,1775814638952,-460.00000001,0.00015518,2]
[420227339,1775814638961,-500.0,0.00015518,2]
[420227341,1775814638970,-500.0,0.00015518,2]
[420227343,1775814638983,-3524.0,0.00015519,2]
[420227345,1775814638994,-622.0,0.00015519,2]
[420227347,1775814639007,-704.179,0.00015519,2]
[420227350,1775814639020,-1347.0,0.00015519,2]
[420227352,1775814639030,-1264.0,0.00015519,2]
[420227354,1775814639044,-1218.0,0.00015519,2]
[420227356,1775814639056,-926.0,0.00015519,2]
[420227358,1775814639065,-415.0,0.00015519,2]
[420227360,1775814639075,-6023.0,0.00015519,2]
[420227362,1775814639085,-168.0,0.00015536,2]
[420227364,1775814639104,-213.38,0.00015577,7]
[420227366,1775814639113,-160.0,0.0001558,7]
[420227368,1775814639123,-1251.070317,0.0001558,7]
[420227370,1775814639138,-2342.140634,0.0001558,7]
[420227372,1775814639151,-160.0,0.0001558,2]
[420227374,1775814639160,-436.026673,0.0001558,2]
[420227376,1775814639170,-712.053347,0.0001558,2]
[420227378,1775814639186,-160.0,0.00015582,7]
[420227380,1775814639196,-1575.841182,0.00015582,7]
[420227382,1775814639205,-2991.682365,0.00015582,7]
[420227384,1775814639215,-168.0,0.00015592,2]
[420227386,1775814639227,-799.79423169,0.00015601,2]
[420227387,1775814639237,-209.0,0.00015633,2]
[420227388,1775814639247,-168.0,0.00015644,2]
[420227389,1775814639256,-2000.0,0.0001565,2]
[420227390,1775814639267,-1138.28964567,0.00015661,2]
[420227391,1775814639277,-500.0,0.00015668,2]
[420227392,1775814639286,-662.3915392,0.00015674,2]
[420227393,1775814639295,-1145.13944799,0.00015696,2]
[420227394,1775814639305,-168.0,0.00015702,2]
[420227395,1775814639317,-166.66,0.00015708,2]
[420227396,1775814639327,-168.0,0.00015737,2]
[420227397,1775814639337,-747.57,0.00015753,2]
[420227398,1775814639347,-168.0,0.00015837,2]
[420227399,1775814639358,-7053.43,0.00015885,2]
[420227400,1775814639367,-2000.0,0.0001589,2]
[420227401,1775814639377,-3642.35,0.00015895,2]
[420227402,1775814639388,-1000.0,0.00015898,2]
[420227403,1775814639397,-306.0,0.000159,2]
[420227404,1775814639407,-5000.0,0.000159,2]
[420227405,1775814639416,-313.0,0.000159,2]
[420227406,1775814639428,-1145.13944799,0.000159,2]
[420227407,1775814639437,-799.79423169,0.000159,2]
[420227408,1775814639447,-1271.07826928,0.000159,2]
[420227409,1775814639456,-496.0,0.00015904,2]
[420227410,1775814639466,-168.0,0.00015913,2]
[420227411,1775814639476,-155.82,0.00015941,2]
[420227412,1775814639485,-250.0,0.00015945,2]
[420227413,1775814639494,-168.0,0.00015957,2]
[420227414,1775814639504,-3889.4162886,0.0001597,2]
[420227415,1775814639515,-500.64769694,0.00015973,2]
[420227416,1775814639525,-500.52139576,0.00015973,2]
[420227417,1775814639535,-500.0,0.00015973,2]
[420227418,1775814639545,-500.0,0.00015973,2]
[420227419,1775814639554,-500.0,0.00015973,2]
[420227420,1775814639565,-500.0,0.00015973,2]
[420227421,1775814639574,-500.0,0.00015973,2]
[420227422,1775814639585,-500.79446736,0.00015973,2]
[420227423,1775814639595,-500.0,0.00015973,2]
[420227424,1775814639607,-501.24708237,0.00015973,2]
[420227425,1775814639616,-500.0,0.00015973,2]
[420227426,1775814639625,-500.0,0.00015973,2]
[420227427,1775814639638,-500.0,0.00015973,2]
[420227428,1775814639650,-500.0,0.00015973,2]
[420227429,1775814639659,-500.0,0.00015973,2]
[420227430,1775814639674,-500.0,0.00015973,2]
[420227431,1775814639686,-500.0,0.00015973,2]
[420227432,1775814639698,-519.13081985,0.00015973,2]
[420227433,1775814639710,-500.0,0.00015973,2]
[420227434,1775814639724,-454.6000021,0.00015973,2]
[420227435,1775814639739,-500.0,0.00015973,2]
[420227436,1775814639755,-500.0,0.00015973,2]
[420227437,1775814639776,-500.0,0.00015973,2]
[420227438,1775814639789,-500.0,0.00015973,2]
[420227439,1775814639804,-500.0,0.00015973,2]
[420227440,1775814639819,-500.0,0.00015973,2]
[420227441,1775814639839,-500.0,0.00015973,2]
[420227442,1775814639848,-500.0,0.00015973,2]
[420227443,1775814639869,-184.99991258,0.00015984,2]
[420227445,1775814639897,-166.93481348,0.00015984,2]
[420227447,1775814639912,-7053.43,0.0001599,2]
[420227449,1775814639937,-500.0,0.00015999,2]
[420227450,1775814639946,-584.13493667,0.00015999,2]
[420227451,1775814639974,-487.33792835,0.00015999,2]
[420227452,1775814639995,-340.58489967,0.00015999,2]
[420227453,1775814640014,-312.71943765,0.00016,2]
[420227454,1775814640041,-150.0,0.00016,2]
[420227455,1775814640062,-1600.0,0.00016,2]
[420227456,1775814640096,-91559.94043256,0.00016,2]
[420227457,1775814640152,-582.57802036,0.00016,2]
[420227458,1775814640258,-7906.75379404,0.00016,2]
[420227459,1775814640300,-993.34152341,0.00016,2]
[420227460,1775814640449,-482.79510806,0.00016,2]
[420227461,1775814640484,-840.8067737,0.00016,2]
[420227462,1775814640580,-415.97989576,0.00016,2]
[420227463,1775814640747,-2852.19657638,0.00016,2]
[420227464,1775814640766,-418.82489194,0.00016,2]
[420227465,1775814640787,-4926.23470969,0.00016,2]
[420227529,1775814642820,-2471.0,0.00015709,2]
[420227532,1775814642840,-8724.03317508,0.00016,2]
[420227542,1775814642916,-2112.68772881,0.00016,2]
[420227543,1775814643239,-6476.04433623,0.00016,2]
[420227552,1775814644049,-5642.70196642,0.00016,2]
[420227553,1775814644084,-2228.81620228,0.00016,2]
[420227554,1775814644116,-2011.69999999,0.00016,2]
[420227555,1775814645839,-157469.6574885,0.00016,2]
[420227556,1775814645853,-1085707.4791695,0.00016,2]
[420227557,1775814645886,-444.58999998,0.00016,2]
[420227558,1775814645969,-1165.00275632,0.00016,2]
[420227559,1775814645982,-35068.7024931,0.00016,2]
[420227577,1775814782656,-1392.39409544,0.0001,2]
[420227578,1775814782709,-2215.22180912,0.000113,5]
[420227579,1775814785607,-1682.01,0.000113,5]
[420227580,1775814785657,-1635.99,0.000113,5]
[420227581,1775814788587,-250.0,0.0001144,2]
[420227582,1775814788617,-250.0,0.00011756,2]
[420227583,1775814788653,-510.0,0.000131,2]
[420227584,1775814788694,-500.0,0.00013111,2]
[420227585,1775814788741,-500.0,0.00013111,2]
[420227586,1775814788911,-480.01,0.00013111,2]
[420227587,1775814789403,-19.99,0.00013111,2]
[420227595,1775815245418,-150.0,0.000113,2]
[420227596,1775815245459,-164.2718,0.0001243,2]
[420227597,1775815245493,-600.0,0.0001243,2]
[420227598,1775815245527,-250.0,0.0001243,2]
[420227599,1775815245560,-177.73205153,0.00013012,2]
[420227600,1775815245593,-510.0,0.000131,2]
[420227601,1775815245627,-300.0,0.0001311,2]
[420227602,1775815245818,-696.00229694,0.0001311,2]
[420227603,1775815248051,-503.99770306,0.0001311,2]
[420227604,1775815248085,-150.0,0.0001311,2]
[420227605,1775815248124,-500.0,0.00013111,2]
[420227606,1775815248160,-500.0,0.00013111,2]
[420227607,1775815248198,-500.0,0.00013111,2]
[420227608,1775815248235,-192.01459388,0.00013111,2]
[420227609,1775815248370,-307.98540612,0.00013111,2]
[420227610,1775815251581,-500.0,0.00013111,2]
[420227611,1775815251646,-500.0,0.00013111,2]
[420227612,1775815251743,-500.0,0.00013111,2]
[420227613,1775815251840,-500.0,0.00013111,2]
[420227614,1775815251903,-500.0,0.00013111,2]
[420227615,1775815252086,-0.01,0.00013111,2]
[420227616,1775815258698,-499.99,0.00013111,2]
[420227617,1775815258744,-500.0,0.00013111,2]
[420227618,1775815258789,-500.0,0.00013111,2]
[420227619,1775815258832,-500.0,0.00013111,2]
[420227620,1775815258871,-374.71788544,0.00013111,2]
[420227621,1775815258915,-500.0,0.00013111,2]
[420227622,1775815258960,-500.0,0.00013111,2]
[420227623,1775815259007,-500.0,0.00013111,2]
[420227624,1775815259050,-300.0,0.00013111,2]
[420227625,1775815259088,-163088.0632,0.00013112,2]
[420227626,1775815259131,-172737.22891456,0.00013112,2]
[420227631,1775815718762,-1196.94549526,0.00012544,2]
[420227632,1775815718796,-250.0,0.00013,2]
[420227633,1775815718834,-606.4171,0.00013012,2]
[420227634,1775815718865,-383.28480948,0.000131,2]
[420227635,1775815718971,-126.71519052,0.000131,2]
[420227636,1775815718988,-300.0,0.00013111,2]
[420227637,1775815719002,-162.0,0.00013112,3]
[420227638,1775815719012,-418.0,0.00013112,3]
[420227639,1775815719028,-151.0,0.00013151,2]
[420227640,1775815719046,-39.23030474,0.000136,2]
[420227641,1775815719059,-110.76969526,0.000136,2]
[420227642,1775815719089,-139.23030474,0.00013688,2]
[420227643,1775815719101,-132.40178226,0.00013688,2]
[420227644,1775815719116,-166.66,0.00013699,2]
[420227645,1775815719134,-300.0,0.00013798,2]
[420227646,1775815719145,-7.35531774,0.00013798,2]
[420227647,1775815719171,-292.64468226,0.00013798,2]
[420227648,1775815719187,-217.35531774,0.00013798,2]
[420227649,1775815720655,-82.64468226,0.00013798,2]
[420227650,1775815720712,-300.0,0.00013799,2]
[420227651,1775815720757,-300.0,0.00013799,2]
[420227652,1775815720830,-166.66,0.00013928,2]
[420227653,1775815720889,-323.75295346,0.00014063,2]
[420227654,1775815720929,-1053.89472856,0.00014108,2]
[420227655,1775815720948,-82.64468226,0.00014108,2]
[420227656,1775815720963,-300.0,0.00014108,2]
[420227657,1775815720981,-163.46058918,0.00014108,2]
[420227658,1775815720995,-136.53941082,0.00014121,2]
[420227659,1775815721020,-166.66,0.00014121,2]
[420227660,1775815721044,-191.17058918,0.00014121,2]
[420227661,1775815721067,-132.58236428,0.00014138,2]
[420227662,1775815721081,-635.84763572,0.00014138,2]
[420227663,1775815721094,-964.15236428,0.00014144,2]
[420227672,1775815831725,-510.0,0.000131,2]
[420227673,1775815831735,-99.8984744,0.000131,2]
[420227674,1775815831842,-189.1015256,0.000131,2]
[420227675,1775815831861,-162.0,0.00013112,3]
[420227676,1775815831882,-397.0,0.00013112,3]
[420227677,1775815831892,-1.8984744,0.00013698,2]
[420227678,1775815831923,-274.38043592,0.00013698,2]
[420227679,1775815831933,-695.93749966,0.00014144,2]
[420227680,1775815831950,-1579.91013606,0.00014144,2]
[420227681,1775815831961,-300.0,0.0001415,2]
[420227682,1775815831971,-166.66,0.00014157,2]
[420227683,1775815831992,-300.0,0.0001417,2]
[420227684,1775815832001,-33968.74,0.00014171,2]
[420227685,1775815832012,-300.0,0.000142,2]
[420227686,1775815832023,-150.0,0.000143,2]
[420227687,1775815832040,-407.49,0.00014327,2]
[420227688,1775815832051,-597.62670957,0.00014385,2]
[420227689,1775815832062,-166.66,0.00014386,2]
[420227691,1775815832080,-1159.14,0.00014438,2]
[420227692,1775815832092,-166.66,0.00014615,2]
[420227693,1775815832105,-200.0,0.00014721,2]
[420227694,1775815832118,-166.66,0.00014844,2]
[420227695,1775815832135,-397.0,0.0001487,3]
[420227696,1775815832148,-701.32,0.00015,2]
[420227697,1775815832157,-300.0,0.00015,2]
[420227698,1775815832171,-1500.0,0.000151,5]
[420227699,1775815832188,-300.0,0.000151,5]
[420227700,1775815832198,-200.0,0.000151,5]
[420227701,1775815832226,-677.60719505,0.00015144,2]
[420227702,1775815832237,-3100.0,0.000152,5]
[420227703,1775815832247,-700.0,0.000152,5]
[420227704,1775815832273,-400.0,0.000152,5]
[420227705,1775815832284,-299.37,0.0001522,2]
[420227706,1775815832297,-4700.0,0.000153,5]
[420227707,1775815832318,-1000.0,0.000153,5]
[420227708,1775815832328,-700.0,0.000153,5]
[420227709,1775815832339,-286.26522124,0.0001532,2]
[420227710,1775815832362,-165.59,0.00015331,2]